fUSD/lending_fUSD_20251118
["ID","MTS","AMOUNT","RATE_DAILY","PERIOD"]
[394337117,1763471308100,-352.51811131,0.00015606,2]
[394337118,1763471308239,196.6551,0.00015406,2]
[394337119,1763471308344,-10.20524178,0.00015606,2]
[394337120,1763471309569,-500.0,0.00015606,2]
[394337121,1763471309602,-500.0,0.00015606,2]
[394337122,1763471309667,-8000.01,0.00015607,2]
[394337123,1763471309694,-10000.01,0.00015607,2]
[394337124,1763471309829,-10000.01,0.00015607,2]
[394337125,1763471309933,-10000.01,0.00015607,2]
[394337126,1763471310063,-10000.01,0.00015607,2]
[394337127,1763471310195,-10000.01,0.00015607,2]
[394337128,1763471310328,-10000.01,0.00015607,2]
[394337129,1763471310479,-10000.01,0.00015607,2]
[394337130,1763471310742,-10000.01,0.00015607,2]
[394337131,1763471312872,-10000.01,0.00015607,2]
[394337132,1763471312952,-3521.67031982,0.00015607,2]
[394337133,1763471313746,2956.66936036,0.00015507,2]
[394337134,1763471313769,10000.01,0.00015507,2]
[394337135,1763471313791,3009.24753964,0.00015507,2]
[394337136,1763471315121,-151.0,0.00015607,2]
[394337137,1763471315143,-151.0,0.00015607,2]
[394337138,1763471315170,-659.22168284,0.0001578,2]
[394337139,1763471323083,-340.77831716,0.0001578,2]
[394337140,1763471323105,-34.72680147,0.0001578,2]
[394337141,1763471331996,375.50511863,0.00015606,2]
[394337147,1763471390910,-355.9851,0.00015507,2]
[394337148,1763471393489,-250.0,0.00015507,2]
[394337149,1763471395242,-500.0,0.00015507,2]
[394337150,1763471398963,-500.0,0.00015507,2]
[394337151,1763471400494,-500.0,0.00015507,2]
[394337152,1763471402555,-500.0,0.00015506,2]
[394337153,1763471404926,-304.21208666,0.00015506,2]
[394337154,1763471406787,-188.40401187,0.00015506,2]
[394337160,1763471431582,-207.38390147,0.00015506,2]
[394337161,1763471431591,-300.0,0.00015506,2]
[394337162,1763471431602,-300.0,0.00015506,2]
[394337163,1763471431611,-15.71609853,0.00015507,2]
[394337164,1763471431621,-72128.66655637,0.00015507,2]
[394337175,1763471437435,-14139.6385451,0.00015507,2]
[394337176,1763471437445,-278.76391485,0.00015606,2]
[394337177,1763471437454,-500.0,0.00015606,2]
[394337178,1763471437464,-500.0,0.00015606,2]
[394337179,1763471437473,-500.0,0.00015606,2]
[394337180,1763471437483,-350.0,0.00015606,2]
[394337181,1763471437492,-304.21208666,0.00015606,2]
[394337182,1763471437503,-500.0,0.00015606,2]
[394337183,1763471437515,-465.59436628,0.00015606,2]
[394337184,1763471437525,-500.0,0.00015606,2]
[394337185,1763471437536,-116.27319853,0.0001578,2]
[394337186,1763471437546,-151.0,0.0001578,2]
[394337187,1763471437556,-250.0,0.00015813,2]
[394337188,1763471437565,-1285.51302325,0.00015834,2]
[394337189,1763471437574,-1260.84,0.00015846,2]
[394337190,1763471437583,-5432.8,0.00015851,2]
[394337191,1763471437592,-10523.55,0.00015891,2]
[394337192,1763471437603,-1679.19,0.00015892,2]
[394337193,1763471437613,-200.0,0.00015897,2]
[394337194,1763471437622,-1250.21,0.000159,2]
[394337195,1763471437631,-416.54025,0.000159,2]
[394337196,1763471437642,-2500.0,0.00015924,2]
[394337197,1763471437652,-200.0,0.00015929,2]
[394337199,1763471437662,-195.79,0.00015996,2]
[394337201,1763471437671,-206.38,0.00016011,2]
[394337203,1763471437680,-250.0,0.00016017,2]
[394337205,1763471437695,-3138.31,0.00016024,2]
[394337207,1763471437704,-1054.24,0.00016065,2]
[394337209,1763471437713,-168.0,0.0001612,2]
[394337211,1763471437723,-168.0,0.00016139,2]
[394337213,1763471437734,-17285.6,0.00016196,2]
[394337215,1763471437743,-150.0,0.000162,2]
[394337217,1763471437752,-150.0,0.000162,2]
[394337219,1763471437763,-168.0,0.00016214,2]
[394337221,1763471437771,-1000.0,0.00016222,2]
[394337223,1763471437781,-5432.8,0.0001628,2]
[394337225,1763471437791,-550.0,0.00016299,2]
[394337227,1763471437806,-1000.0,0.000163,2]
[394337229,1763471437815,-168.0,0.00016323,2]
[394337232,1763471437826,-168.0,0.00016329,2]
[394337233,1763471437835,-168.0,0.00016337,2]
[394337236,1763471437845,-500.0,0.00016382,2]
[394337238,1763471437856,-16056.27,0.00016383,2]
[394337240,1763471437865,-166.66,0.00016387,2]
[394337242,1763471437874,-500.0,0.00016399,2]
[394337244,1763471437885,-500.0,0.00016399,2]
[394337245,1763471437894,-564.1510468,0.00016438,2]
[394337248,1763471437904,-434.27007163,0.00016438,2]
[394337249,1763471437914,-500.0,0.00016438,2]
[394337252,1763471437925,-500.0,0.00016438,2]
[394337253,1763471437934,-500.0,0.00016438,2]
[394337255,1763471437943,-500.0,0.00016438,2]
[394337258,1763471437952,-424.20261137,0.00016438,2]
[394337259,1763471437961,-4238.19,0.00016438,2]
[394337261,1763471437970,-168.0,0.00016563,2]
[394337263,1763471437980,-168.0,0.00016603,2]
[394337265,1763471437989,-151.0,0.00016707,2]
[394337268,1763471437998,-151.0,0.00016732,2]
[394337270,1763471438007,-500.0,0.00016734,2]
[394337272,1763471438016,-200.0,0.00016735,2]
[394337274,1763471438025,-168.0,0.00016747,2]
[394337275,1763471438034,-151.0,0.00016763,2]
[394337277,1763471438043,-151.0,0.00016763,2]
[394337280,1763471438053,-3690.532,0.00016818,2]
[394337282,1763471438063,-168.0,0.00016883,2]
[394337284,1763471438072,-168.0,0.00016887,2]
[394337286,1763471438082,-1000.0,0.000169,2]
[394337288,1763471438091,-206.38,0.00016901,2]
[394337290,1763471438100,-420.0,0.00016961,2]
[394337292,1763471438109,-420.0,0.00016961,2]
[394337294,1763471438119,-168.0,0.00016993,2]
[394337296,1763471438128,-2000.0,0.00017,2]
[394337298,1763471438138,-250.0,0.00017,2]
[394337300,1763471438148,-168.0,0.00017016,2]
[394337302,1763471438158,-1680.0,0.00017047,2]
[394337304,1763471438167,-300.0,0.00017057,2]
[394337306,1763471438177,-300.0,0.00017057,2]
[394337308,1763471438187,-300.0,0.00017057,2]
[394337310,1763471438196,-300.0,0.00017057,2]
[394337312,1763471438206,-300.0,0.00017057,2]
[394337314,1763471438215,-250.0,0.00017057,2]
[394337316,1763471438225,-166.66,0.00017064,2]
[394337318,1763471438234,-168.0,0.00017075,2]
[394337320,1763471438243,-168.0,0.00017095,2]
[394337322,1763471438252,-168.0,0.00017123,2]
[394337324,1763471438262,-168.0,0.00017189,2]
[394337326,1763471438271,-8887.35,0.00017244,2]
[394337328,1763471438280,-250.0,0.00017358,2]
[394337330,1763471438290,-2329.0,0.000174,2]
[394337332,1763471438299,-531.0,0.00017424,2]
[394337334,1763471438308,-301.25832268,0.00017436,2]
[394337336,1763471438318,-150.0,0.00017437,2]
[394337338,1763471438328,-1006.48846121,0.00017437,2]
[394337340,1763471438337,-158.92564384,0.00017437,2]
[394337342,1763471438346,-168.0,0.00017482,2]
[394337344,1763471438356,-168.0,0.00017495,2]
[394337346,1763471438365,-1291.42974756,0.00017556,2]
[394337348,1763471438379,-168.0,0.0001756,2]
[394337350,1763471438389,-168.0,0.00017579,2]
[394337352,1763471438398,-222.2989347,0.00017587,2]
[394337354,1763471438407,-168.0,0.00017611,2]
[394337356,1763471438416,-166.66,0.0001774,2]
[394337358,1763471438426,-206.38,0.00017791,2]
[394337360,1763471438435,-1076.0,0.000178,2]
[394337362,1763471438444,-200.0,0.00017856,2]
[394337364,1763471438453,-240.38343918,0.00017877,2]
[394337366,1763471438462,-7542.22333104,0.00017877,2]
[394337368,1763471438472,-293.69798958,0.000179,2]
[394337370,1763471438481,-946.63821582,0.000179,2]
[394337372,1763471438490,-500.0,0.000179,2]
[394337374,1763471438499,-500.0,0.000179,2]
[394337376,1763471438508,-150.0,0.00017945,2]
[394337378,1763471438517,-150.0,0.00017945,2]
[394337380,1763471438527,-214.6591868,0.00017945,2]
[394337382,1763471438536,-150.0,0.00017945,2]
[394337384,1763471438546,-150.0,0.00017945,2]
[394337386,1763471438555,-150.0,0.00017945,2]
[394337388,1763471438564,-150.0,0.00017945,2]
[394337390,1763471438573,-150.0,0.00017945,2]
[394337392,1763471438582,-150.0,0.00017945,2]
[394337394,1763471438591,-500.0,0.00017945,2]
[394337396,1763471438600,-150.82865062,0.00017948,5]
[394337398,1763471438609,-500.0,0.00017973,2]
[394337400,1763471438618,-500.0,0.00017973,2]
[394337402,1763471438627,-500.0,0.00017973,2]
[394337404,1763471438636,-413.34878165,0.00017973,2]
[394337406,1763471438646,-500.0,0.00017973,2]
[394337408,1763471438655,-500.0,0.00017973,2]
[394337410,1763471438664,-500.0,0.00017973,2]
[394337413,1763471438673,-474.18379636,0.00017973,2]
[394337415,1763471438685,-500.0,0.00017973,2]
[394337416,1763471438695,-500.0,0.00017976,2]
[394337418,1763471438705,-500.0,0.00017976,2]
[394337420,1763471438714,-212580.0109021,0.00017977,2]
[394337423,1763471438724,-44043.3030924,0.00017977,2]
[394337424,1763471438734,-300.0,0.00017999,2]
[394337426,1763471438743,-500.0,0.00017999,2]
[394337429,1763471438753,-449.84043247,0.00017999,2]
[394337430,1763471438763,-500.0,0.00017999,2]
[394337432,1763471438773,-500.0,0.00017999,2]
[394337434,1763471438781,-500.0,0.00017999,2]
[394337437,1763471438791,-500.0,0.00017999,2]
[394337439,1763471438800,-548.47,0.00017999,2]
[394337440,1763471438809,-3143.0,0.00018,2]
[394337442,1763471438818,-2541533.92562473,0.00018,2]
[394337444,1763471438828,-167950.35267145,0.00018,2]
[394337446,1763471438838,-151.0,0.00018,2]
[394337449,1763471438847,-152.418954,0.00018,2]
[394337451,1763471438857,-151.0,0.00018,2]
[394337453,1763471438866,-151.0,0.00018,2]
[394337455,1763471438877,-151.0,0.00018,2]
[394337456,1763471438886,-151.0,0.00018,2]
[394337459,1763471438895,-208.40371,0.00018,2]
[394337460,1763471438904,-166.828685,0.00018,2]
[394337463,1763471438914,-151.0,0.00018,2]
[394337464,1763471438924,-151.0,0.00018,2]
[394337466,1763471438935,-151.0,0.00018,2]
[394337468,1763471438945,-238.13294,0.00018,2]
[394337470,1763471438954,-151.0,0.00018,2]
[394337472,1763471438964,-151.0,0.00018,2]
[394337475,1763471438974,-386.26,0.00018,2]
[394337477,1763471438983,-1144.7182,0.00018,2]
[394337478,1763471438992,-150.0,0.00018,2]
[394337481,1763471439002,-2540.64794098,0.00018,2]
[394337483,1763471439011,-150.0,0.00018,2]
[394337485,1763471439021,-290.71808346,0.00018,2]
[394337487,1763471439030,-500.0,0.00018082,2]
[394337489,1763471439039,-444.37,0.00018082,2]
[394337491,1763471439048,-15286.35603598,0.000181,2]
[394337493,1763471439059,-1239.0,0.000182,2]
[394337494,1763471439068,-500.0,0.00018219,2]
[394337497,1763471439079,-1000.0,0.0001825,2]
[394337498,1763471439088,-386.26,0.00018274,2]
[394337500,1763471439098,-500.0,0.00018356,2]
[394337503,1763471439108,-5408.32,0.00018356,2]
[394337505,1763471439118,-300.0,0.00018365,2]
[394337507,1763471439127,-166.66,0.00018416,2]
[394337509,1763471439136,-1000.0,0.00018521,2]
[394337511,1763471439146,-1000.0,0.00018521,2]
[394337513,1763471439155,-1000.0,0.00018521,2]
[394337514,1763471439164,-1000.0,0.00018521,2]
[394337517,1763471439174,-429.05792664,0.00018521,2]
[394337518,1763471439183,-386.26,0.00018548,2]
[394337520,1763471439193,-587.0,0.00018554,2]
[394337522,1763471439202,-587.0,0.00018554,2]
[394337524,1763471439211,-575.0,0.00018604,2]
[394337526,1763471439221,-609.0,0.00018604,2]
[394337528,1763471439231,-1318.0,0.00018604,2]
[394337530,1763471439240,-1599.0,0.00018604,2]
[394337532,1763471439250,-821.0,0.00018604,2]
[394337534,1763471439259,-793.0,0.00018604,2]
[394337536,1763471439269,-1276.0,0.00018604,2]
[394337538,1763471439278,-1191.0,0.00018604,2]
[394337540,1763471439289,-916.35,0.00018604,2]
[394337542,1763471439298,-705.0,0.00018621,2]
[394337544,1763471439308,-1604.0,0.00018621,2]
[394337546,1763471439319,-6490.0,0.00018621,2]
[394337549,1763471439329,-7542.22333095,0.00018647,2]
[394337551,1763471439339,-206.38,0.0001868,2]
[394337553,1763471439348,-210.0,0.00018685,2]
[394337555,1763471439357,-295.499,0.00018685,2]
[394337557,1763471439366,-150.0,0.00018685,2]
[394337559,1763471439376,-169.08,0.00018685,2]
[394337561,1763471439385,-288.139,0.00018685,2]
[394337563,1763471439394,-150.408,0.00018685,2]
[394337565,1763471439403,-150.144,0.00018685,2]
[394337567,1763471439412,-250.0,0.00018685,2]
[394337568,1763471439421,-150.0,0.00018685,2]
[394337570,1763471439431,-283.616,0.00018685,2]
[394337572,1763471439441,-150.816,0.00018685,2]
[394337575,1763471439452,-3432.0,0.00018685,2]
[394337576,1763471439461,-1000.0,0.00018714,2]
[394337579,1763471439470,-2351.0,0.00018741,2]
[394337580,1763471439479,-444.37,0.0001876,2]
[394337582,1763471439488,-150.75,0.000188,2]
[394337585,1763471439498,-150.75,0.000188,2]
[394337587,1763471439508,-386.26,0.00018822,2]
[394337589,1763471439517,-1000.0,0.00018851,2]
[394337591,1763471439526,-169.92,0.00018856,2]
[394337593,1763471439536,-166.68,0.00018882,2]
[394337595,1763471439545,-235.71991702,0.00018942,2]
[394337597,1763471439554,-73449.32002546,0.00019,2]
[394337598,1763471439563,-262.95867868,0.00019,2]
[394337600,1763471439572,-234.12612966,0.00019,2]
[394337602,1763471439581,-151.0,0.00019,2]
[394337604,1763471439590,-282.228847,0.00019,2]
[394337606,1763471439599,-153.884434,0.00019,2]
[394337609,1763471439609,-300.0,0.00019,2]
[394337611,1763471439618,-151.0,0.00019,2]
[394337613,1763471439627,-154.521633,0.00019,2]
[394337615,1763471439636,-151.0,0.00019,2]
[394337616,1763471439646,-151.0,0.00019,2]
[394337618,1763471439656,-151.0,0.00019,2]
[394337621,1763471439665,-379.197318,0.00019,2]
[394337623,1763471439675,-379.197318,0.00019,2]
[394337625,1763471439687,-379.197318,0.00019,2]
[394337626,1763471439698,-379.197318,0.00019,2]
[394337629,1763471439708,-1500.0,0.00019068,2]
[394337631,1763471439717,-1260.22802213,0.00019068,2]
[394337633,1763471439727,-1500.0,0.00019068,2]
[394337634,1763471439737,-1500.0,0.00019068,2]
[394337636,1763471439746,-300.0,0.00019082,2]
[394337638,1763471439755,-166.66,0.00019092,2]
[394337640,1763471439766,-386.3,0.00019096,2]
[394337642,1763471439775,-151.0,0.00019178,2]
[394337644,1763471439785,-151.0,0.00019178,2]
[394337646,1763471439795,-151.0,0.00019178,2]
[394337648,1763471439804,-3378.21,0.00019178,2]
[394337649,1763471439813,-151.0,0.00019178,2]
[394337650,1763471439822,-151.0,0.00019178,2]
[394337651,1763471439831,-151.0,0.00019178,2]
[394337652,1763471439840,-151.0,0.00019178,2]
[394337653,1763471439849,-151.0,0.00019178,2]
[394337654,1763471439857,-151.0,0.00019178,2]
[394337655,1763471439866,-7542.22333095,0.00019416,2]
[394337656,1763471439875,-444.37,0.00019438,2]
[394337674,1763471439884,-19981.39061451,0.000195,7]
[394337676,1763471440066,-479.30025826,0.000195,7]
[394337678,1763471440076,-1600.0,0.00019553,2]
[394337680,1763471440086,-206.38,0.0001957,2]
[394337682,1763471440095,-5517.0,0.000196,3]
[394337684,1763471440104,-981.72662535,0.00019616,2]
[394337686,1763471440114,-2000.0,0.00019616,2]
[394337688,1763471440123,-2000.0,0.00019616,2]
[394337690,1763471440133,-10068.18,0.00019726,2]
[394337692,1763471440142,-156.587,0.00019726,2]
[394337694,1763471440151,-500.0,0.00019973,2]
[394337696,1763471440162,-368.19186078,0.00019989,2]
[394337698,1763471440171,-152009.23666006,0.0001999,2]
[394337700,1763471440181,-100595.3079487,0.0002,5]
[394337702,1763471440190,-475.03245629,0.0002,2]
[394337704,1763471440199,-3258.24746288,0.0002,4]
[394337706,1763471440208,-151.0,0.0002,2]
[394337708,1763471440217,-151.0,0.0002,2]
[394337709,1763471440227,-151.0,0.0002,2]
[394337710,1763471440236,-331.261721,0.0002,2]
[394337711,1763471440245,-151.0,0.0002,2]
[394337712,1763471440255,-151.0,0.0002,2]
[394337714,1763471440264,-151.0,0.0002,2]
[394337715,1763471440274,-259.220377,0.0002,2]
[394337716,1763471440283,-203.732794,0.0002,2]
[394337717,1763471440293,-1144.71821,0.0002,2]
[394337718,1763471440303,-379.197318,0.0002,2]
[394337719,1763471440312,-379.197318,0.0002,2]
[394337720,1763471440321,-379.197318,0.0002,2]
[394337721,1763471440330,-379.197318,0.0002,2]
[394337722,1763471440340,-5518.0,0.0002,5]
[394337723,1763471440350,-210.32648238,0.00020087,2]
[394337724,1763471440359,-444.37,0.00020116,2]
[394337725,1763471440368,-2500.0,0.00020164,2]
[394337726,1763471440379,-834.85914671,0.00020164,2]
[394337727,1763471440388,-7542.22333095,0.00020186,2]
[394337728,1763471440397,-823.52,0.00020187,2]
[394337729,1763471440407,-242.12274396,0.00020274,2]
[394337730,1763471440416,-1000.0,0.00020277,2]
[394337731,1763471440426,-823.0,0.00020296,2]
[394337732,1763471440436,-823.0,0.00020296,2]
[394337733,1763471440445,-159.86537393,0.00020359,2]
[394337734,1763471440455,-206.38,0.00020459,2]
[394337735,1763471440464,-240.38343912,0.00020509,2]
[394337736,1763471440474,-1000.0,0.00020521,2]
[394337737,1763471440483,-151.0,0.00020548,2]
[394337738,1763471440493,-151.0,0.00020548,2]
[394337739,1763471440502,-151.0,0.00020548,2]
[394337740,1763471440512,-219.400037,0.00020548,2]
[394337741,1763471440521,-219.400037,0.00020548,2]
[394337742,1763471440531,-219.400037,0.00020548,2]
[394337743,1763471440540,-219.400037,0.00020548,2]
[394337744,1763471440549,-219.400037,0.00020548,2]
[394337745,1763471440559,-219.400037,0.00020548,2]
[394337746,1763471440568,-219.400037,0.00020548,2]
[394337747,1763471440577,-219.400037,0.00020548,2]
[394337748,1763471440587,-3292.0,0.00020604,2]
[394337749,1763471440596,-2000.0,0.000207,2]
[394337750,1763471440606,-312.29493623,0.00020712,2]
[394337751,1763471440615,-444.37,0.00020795,2]
[394337752,1763471440624,-7542.22333095,0.00020956,2]
[394337753,1763471440634,-350.0,0.00021,2]
[394337754,1763471440644,-1500.0,0.00021068,2]
[394337755,1763471440653,-917.01558232,0.00021137,2]
[394337756,1763471440662,-47433.0118769,0.00021237,2]
[394337757,1763471440671,-9827.3892724,0.00021237,2]
[394337758,1763471440682,-206.38,0.00021349,2]
[394337759,1763471440694,-1600.0,0.00021509,2]
[394337760,1763471440703,-575.0,0.00021604,2]
[394337761,1763471440712,-608.0,0.00021604,2]
[394337762,1763471440721,-1318.0,0.00021604,2]
[394337763,1763471440732,-1599.0,0.00021604,2]
[394337764,1763471440741,-821.0,0.00021604,2]
[394337765,1763471440750,-306.747,0.00021604,2]
[394337766,1763471440759,-1191.0,0.00021604,2]
[394337767,1763471440770,-907.0,0.00021604,2]
[394337768,1763471440779,-178.45831871,0.00021616,2]
[394337769,1763471440788,-6490.0,0.00021621,2]
[394337770,1763471440798,-150.0,0.00021685,2]
[394337771,1763471440807,-150.0,0.00021685,2]
[394337772,1763471440816,-150.0,0.00021685,2]
[394337773,1763471440825,-150.0,0.00021685,2]
[394337774,1763471440834,-150.0,0.00021685,2]
[394337775,1763471440843,-685.623,0.00021685,2]
[394337776,1763471440852,-7542.22333095,0.00021725,2]
[394337777,1763471440862,-1033.07,0.00021781,2]
[394337778,1763471440871,-293.69798957,0.00021845,2]
[394337779,1763471440881,-5000.0,0.00021918,2]
[394337780,1763471440890,-151.0,0.00021918,2]
[394337781,1763471440899,-152.998039,0.00021918,2]
[394337782,1763471440908,-152.0,0.00021918,2]
[394337783,1763471440917,-152.0,0.00021918,2]
[394337784,1763471440926,-162.0,0.00021918,2]
[394337785,1763471440936,-162.0,0.00021918,2]
[394337786,1763471440946,-152.0,0.00021918,2]
[394337787,1763471440955,-152.0,0.00021918,2]
[394337788,1763471440964,-162.0,0.00021918,2]
[394337789,1763471440974,-175.0073159,0.00021918,2]
[394337790,1763471440984,-152.0,0.00021918,2]
[394337791,1763471440994,-229.05079582,0.00021918,2]
[394337792,1763471441003,-10583.7355364,0.00021964,2]
[394337793,1763471441013,-2192.7869422,0.00021964,2]
[394337794,1763471441023,-3585.64,0.00021989,2]
[394337795,1763471441033,-8852.03,0.00022,7]
[394337796,1763471441042,-868.344002,0.00022,4]
[394337797,1763471441052,-1144.7182,0.00022,2]
[394337798,1763471441061,-205.79,0.00022,2]
[394337799,1763471441071,-1152.0,0.00022201,2]
[394337800,1763471441080,-1152.0,0.00022201,2]
[394337801,1763471441090,-206.38,0.00022238,2]
[394337802,1763471441101,-1000.0,0.00022305,2]
[394337803,1763471441111,-7542.22333095,0.00022495,2]
[394337804,1763471441120,-299.99,0.00022562,7]
[394337805,1763471441130,-471.4,0.00022562,2]
[394337806,1763471441138,-9999.99,0.00022562,2]
[394337807,1763471441148,-150.99,0.00022562,2]
[394337808,1763471441158,-4609.0,0.00022653,2]
[394337809,1763471441167,-400.0,0.00023,2]
[394337810,1763471441176,-219.36,0.00023038,2]
[394337811,1763471441185,-206.38,0.00023128,2]
[394337812,1763471441195,-240.38343912,0.00023141,2]
[394337813,1763471441204,-7542.22333095,0.00023265,2]
[394337814,1763471441213,-479.30025826,0.00023301,2]
[394337815,1763471441223,-1600.0,0.00023464,2]
[394337816,1763471441232,-162.97814708,0.00023581,2]
[394337817,1763471441242,-1144.71821,0.00024,2]
[394337818,1763471441252,-206.38,0.00024017,2]
[394337819,1763471441261,-7542.22333095,0.00024034,2]
[394337820,1763471441271,-418.96,0.00024225,30]
[394337821,1763471441280,-1613.0,0.00024285,2]
[394337822,1763471441289,-885.0,0.00024285,2]
[394337823,1763471441299,-1000.0,0.00024333,2]
[394337824,1763471441308,-2000.0,0.000244,2]
[394337825,1763471441317,-205.79,0.00024458,2]
[394337826,1763471441326,-1599.0,0.00024604,2]
[394337827,1763471441335,-821.0,0.00024604,2]
[394337828,1763471441344,-1191.0,0.00024604,2]
[394337829,1763471441353,-907.0,0.00024604,2]
[394337830,1763471441362,-777.733,0.00024621,2]
[394337831,1763471441371,-1604.0,0.00024621,2]
[394337832,1763471441381,-709.66040329,0.00024657,2]
[394337833,1763471441390,-156.0,0.00024658,2]
[394337834,1763471441399,-156.0,0.00024658,2]
[394337835,1763471441407,-157.61419424,0.00024658,2]
[394337836,1763471441416,-156.0,0.00024658,2]
[394337837,1763471441426,-156.0,0.00024658,2]
[394337838,1763471441436,-171.0,0.00024658,2]
[394337839,1763471441445,-171.0,0.00024658,2]
[394337840,1763471441455,-171.0,0.00024658,2]
[394337841,1763471441463,-171.0,0.00024658,2]
[394337842,1763471441472,-171.0,0.00024658,2]
[394337843,1763471441483,-171.0,0.00024658,2]
[394337844,1763471441492,-171.0,0.00024658,2]
[394337845,1763471441502,-153.0,0.00024658,2]
[394337846,1763471441511,-153.0,0.00024658,2]
[394337847,1763471441520,-153.0,0.00024658,2]
[394337848,1763471441529,-153.0,0.00024658,2]
[394337849,1763471441538,-156.0,0.00024658,2]
[394337850,1763471441547,-156.0,0.00024658,2]
[394337851,1763471441556,-156.0,0.00024658,2]
[394337852,1763471441565,-156.0,0.00024658,2]
[394337853,1763471441574,-156.0,0.00024658,2]
[394337854,1763471441583,-156.0,0.00024658,2]
[394337855,1763471441592,-156.0,0.00024658,2]
[394337856,1763471441602,-153.0,0.00024658,2]
[394337857,1763471441611,-153.0,0.00024658,2]
[394337858,1763471441620,-153.0,0.00024658,2]
[394337859,1763471441629,-153.0,0.00024658,2]
[394337860,1763471441638,-160.0,0.00024658,2]
[394337861,1763471441648,-160.0,0.00024658,2]
[394337862,1763471441657,-160.0,0.00024658,2]
[394337863,1763471441667,-160.0,0.00024658,2]
[394337864,1763471441676,-160.0,0.00024658,2]
[394337865,1763471441693,-160.0,0.00024658,2]
[394337866,1763471441702,-160.0,0.00024658,2]
[394337867,1763471441712,-215.0,0.00024658,2]
[394337868,1763471441721,-215.0,0.00024658,2]
[394337869,1763471441731,-215.0,0.00024658,2]
[394337870,1763471441740,-215.0,0.00024658,2]
[394337871,1763471441749,-215.0,0.00024658,2]
[394337872,1763471441761,-215.0,0.00024658,2]
[394337873,1763471441770,-215.0,0.00024658,2]
[394337874,1763471441779,-153.0,0.00024658,2]
[394337875,1763471441788,-153.0,0.00024658,2]
[394337876,1763471441798,-153.0,0.00024658,2]
[394337877,1763471441808,-153.0,0.00024658,2]
[394337878,1763471441817,-270.0,0.00024658,2]
[394337879,1763471441827,-270.0,0.00024658,2]
[394337880,1763471441836,-270.0,0.00024658,2]
[394337881,1763471441845,-270.0,0.00024658,2]
[394337882,1763471441855,-270.0,0.00024658,2]
[394337883,1763471441864,-270.0,0.00024658,2]
[394337884,1763471441873,-270.0,0.00024658,2]
[394337885,1763471441882,-153.0,0.00024658,2]
[394337886,1763471441892,-153.0,0.00024658,2]
[394337887,1763471441901,-153.0,0.00024658,2]
[394337888,1763471441910,-153.0,0.00024658,2]
[394337889,1763471441919,-153.0,0.00024658,2]
[394337890,1763471441928,-153.0,0.00024658,2]
[394337891,1763471441940,-153.0,0.00024658,2]
[394337892,1763471441950,-164.0,0.00024658,2]
[394337893,1763471441959,-164.0,0.00024658,2]
[394337894,1763471441968,-164.0,0.00024658,2]
[394337895,1763471441978,-164.0,0.00024658,2]
[394337896,1763471441987,-164.0,0.00024658,2]
[394337897,1763471441996,-164.0,0.00024658,2]